fUST/lending_fUST_20251123
["ID","MTS","AMOUNT","RATE_DAILY","PERIOD"]
[394662019,1763836145104,-683.85296701,6.253e-05,2]
[394662020,1763836146909,500.0,6.252e-05,2]
[394662021,1763836146946,633.04497984,6.252e-05,2]
[394662022,1763836161655,515.16076637,6.252e-05,2]
[394662023,1763836161981,515.16076637,6.252e-05,2]
[394662024,1763836162295,515.16076637,6.252e-05,2]
[394662025,1763836163070,515.16076637,6.252e-05,2]
[394662026,1763836163131,500.0,6.252e-05,2]
[394662027,1763836163393,515.16076637,6.252e-05,2]
[394662028,1763836164365,515.16076637,6.252e-05,2]
[394662029,1763836164676,515.16076637,6.252e-05,2]
[394662030,1763836165070,515.16076637,6.252e-05,2]
[394662031,1763836165376,515.16076637,6.252e-05,2]
[394662032,1763836166065,515.16076637,6.252e-05,2]
[394662033,1763836166454,515.16076637,6.252e-05,2]
[394662034,1763836166759,515.16076637,6.252e-05,2]
[394662035,1763836167096,111.56144889,6.252e-05,2]
[394662036,1763836167122,403.59931748,6.252e-05,2]
[394662037,1763836167396,515.16076637,6.252e-05,2]
[394662038,1763836167692,515.16076637,6.252e-05,2]
[394662039,1763836168003,515.16076637,6.252e-05,2]
[394662040,1763836168310,515.16076637,6.252e-05,2]
[394662041,1763836168892,515.16076637,6.252e-05,2]
[394662042,1763836168956,515.16076637,6.252e-05,2]
[394662043,1763836169223,515.16076637,6.252e-05,2]
[394662044,1763836169549,515.16076637,6.252e-05,2]
[394662045,1763836169863,515.16076637,6.252e-05,2]
[394662046,1763836170170,515.16076637,6.252e-05,2]
[394662047,1763836170470,515.16076637,6.252e-05,2]
[394662048,1763836170765,515.16076637,6.252e-05,2]
[394662049,1763836171071,515.16076637,6.252e-05,2]
[394662050,1763836171629,515.16076637,6.252e-05,2]
[394662051,1763836172019,515.16076637,6.252e-05,2]
[394662052,1763836172354,515.16076637,6.252e-05,2]
[394662053,1763836172684,515.16076637,6.252e-05,2]
[394662054,1763836173143,515.16076637,6.252e-05,2]
[394662055,1763836173954,515.16076637,6.252e-05,2]
[394662056,1763836174268,515.16076637,6.252e-05,2]
[394662057,1763836174567,515.16076637,6.252e-05,2]
[394662058,1763836174865,515.16076637,6.252e-05,2]
[394662059,1763836175190,515.16076637,6.252e-05,2]
[394662060,1763836175496,515.16076637,6.252e-05,2]
[394662061,1763836175912,515.16076637,6.252e-05,2]
[394662062,1763836176226,515.16076637,6.252e-05,2]
[394662063,1763836176527,515.16076637,6.252e-05,2]
[394662064,1763836176826,515.16076637,6.252e-05,2]
[394662065,1763836177138,515.16076637,6.252e-05,2]
[394662066,1763836203724,300.0,6.252e-05,2]
[394662088,1763836231930,-1273.65178104,6.253e-05,2]
[394662090,1763836231941,-2445.36144864,6.253e-05,2]
[394662092,1763836231953,-5200.02029838,6.253e-05,2]
[394662094,1763836231987,-70238.71490663,6.253e-05,2]
[394662103,1763836232552,500.0,6.252e-05,2]
[394662104,1763836232624,442.27697171,6.252e-05,2]
[394662105,1763836232651,57.72302829,6.252e-05,2]
[394662106,1763836232690,500.0,6.252e-05,2]
[394662107,1763836232726,500.0,6.252e-05,2]
[394662108,1763836232760,500.0,6.252e-05,2]
[394662109,1763836232806,500.0,6.252e-05,2]
[394662110,1763836232845,500.0,6.252e-05,2]
[394662111,1763836232879,500.0,6.252e-05,2]
[394662112,1763836232917,500.0,6.252e-05,2]
[394662113,1763836232952,492.65553857,6.252e-05,2]
[394662114,1763836232987,500.0,6.252e-05,2]
[394662115,1763836233028,500.0,6.252e-05,2]
[394662116,1763836233065,500.0,6.252e-05,2]
[394662117,1763836233100,500.0,6.252e-05,2]
[394662118,1763836233137,500.0,6.252e-05,2]
[394662119,1763836233170,500.0,6.252e-05,2]
[394662120,1763836233204,500.0,6.252e-05,2]
[394662121,1763836233241,500.0,6.252e-05,2]
[394662122,1763836233279,500.0,6.252e-05,2]
[394662123,1763836233315,500.0,6.252e-05,2]
[394662124,1763836233350,500.0,6.252e-05,2]
[394662125,1763836233390,449.63143314,6.252e-05,2]
[394662126,1763836233417,50.36856686,6.252e-05,2]
[394662127,1763836233452,500.0,6.252e-05,2]
[394662128,1763836233495,500.0,6.252e-05,2]
[394662129,1763836233530,500.0,6.252e-05,2]
[394662130,1763836233612,500.0,6.252e-05,2]
[394662131,1763836233662,500.0,6.252e-05,2]
[394662132,1763836233775,500.0,6.252e-05,2]
[394662144,1763836237710,-4819.5,6.253e-05,2]
[394662145,1763836237722,-16625.38856308,6.253e-05,2]
[394662146,1763836237736,-557.13363298,6.253e-05,2]
[394662147,1763836237747,-396.88751354,6.253e-05,2]
[394662148,1763836237758,-291.300155,6.253e-05,2]
[394662149,1763836237769,-890.15205145,6.253e-05,2]
[394662150,1763836237780,-281.00478041,6.253e-05,2]
[394662151,1763836237791,-338.84055212,6.253e-05,2]
[394662152,1763836237802,-8274.32570997,6.253e-05,2]
[394662153,1763836237813,-19470.29374046,6.253e-05,2]
[394662157,1763836239790,-250.86269329,6.253e-05,2]
[394662158,1763836239846,-429.42624312,6.253e-05,2]
[394662159,1763836239857,-1848.31019647,6.253e-05,2]
[394662160,1763836240199,-2e-08,6.253e-05,2]
[394662166,1763836244094,-44508.04876545,6.253e-05,2]
[394662183,1763836246254,-33894.88895575,6.253e-05,2]
[394662184,1763836246302,500.0,6.252e-05,2]
[394662185,1763836246350,500.0,6.252e-05,2]
[394662186,1763836246398,500.0,6.252e-05,2]
[394662187,1763836249367,500.0,6.252e-05,2]
[394662188,1763836249421,500.0,6.252e-05,2]
[394662189,1763836249472,500.0,6.252e-05,2]
[394662190,1763836249539,500.0,6.252e-05,2]
[394662191,1763836249585,500.0,6.252e-05,2]
[394662192,1763836249599,-305.00000001,6.253e-05,2]
[394662193,1763836249648,500.0,6.252e-05,2]
[394662194,1763836249695,500.0,6.252e-05,2]
[394662195,1763836249750,500.0,6.252e-05,2]
[394662196,1763836249818,500.0,6.252e-05,2]
[394662197,1763836249865,500.0,6.252e-05,2]
[394662198,1763836249921,449.64143314,6.252e-05,2]
[394662199,1763836249960,50.35856686,6.252e-05,2]
[394662200,1763836250007,500.0,6.252e-05,2]
[394662201,1763836250049,500.0,6.252e-05,2]
[394662202,1763836250101,500.0,6.252e-05,2]
[394662203,1763836250176,500.0,6.252e-05,2]
[394662204,1763836250222,500.0,6.252e-05,2]
[394662205,1763836250264,500.0,6.252e-05,2]
[394662206,1763836250310,500.0,6.252e-05,2]
[394662207,1763836250352,500.0,6.252e-05,2]
[394662208,1763836250401,500.0,6.252e-05,2]
[394662209,1763836250449,492.65553857,6.252e-05,2]
[394662210,1763836250499,500.0,6.252e-05,2]
[394662211,1763836250540,500.0,6.252e-05,2]
[394662212,1763836250592,500.0,6.252e-05,2]
[394662213,1763836263660,300.0,6.252e-05,2]
[394662214,1763836290623,500.0,6.252e-05,2]
[394662215,1763836290657,500.0,6.252e-05,2]
[394662216,1763836290696,500.0,6.252e-05,2]
[394662217,1763836290730,500.0,6.252e-05,2]
[394662218,1763836290769,500.0,6.252e-05,2]
[394662219,1763836290803,500.0,6.252e-05,2]
[394662220,1763836290841,156.99589457,6.252e-05,2]
[394662221,1763836290870,343.00410543,6.252e-05,2]
[394662222,1763836290905,500.0,6.252e-05,2]
[394662223,1763836290940,500.0,6.252e-05,2]
[394662224,1763836290975,500.0,6.252e-05,2]
[394662225,1763836291015,500.0,6.252e-05,2]
[394662226,1763836291056,500.0,6.252e-05,2]
[394662227,1763836291096,500.0,6.252e-05,2]
[394662228,1763836291140,500.0,6.252e-05,2]
[394662229,1763836291180,500.0,6.252e-05,2]
[394662230,1763836291219,500.0,6.252e-05,2]
[394662231,1763836291279,500.0,6.252e-05,2]
[394662232,1763836291317,500.0,6.252e-05,2]
[394662233,1763836291366,500.0,6.252e-05,2]
[394662234,1763836291402,500.0,6.252e-05,2]
[394662235,1763836291440,500.0,6.252e-05,2]
[394662236,1763836291483,500.0,6.252e-05,2]
[394662237,1763836291521,500.0,6.252e-05,2]
[394662238,1763836291557,500.0,6.252e-05,2]
[394662239,1763836291593,455.52866435,6.252e-05,2]
[394662240,1763836291637,500.0,6.252e-05,2]
[394662241,1763836291672,201.47723022,6.252e-05,2]
[394662242,1763836291699,298.52276978,6.252e-05,2]
[394662243,1763836291734,500.0,6.252e-05,2]
[394662244,1763836291771,500.0,6.252e-05,2]
[394662245,1763836291992,500.0,6.252e-05,2]
[394662246,1763836292027,500.0,6.252e-05,2]
[394662247,1763836292070,500.0,6.252e-05,2]
[394662248,1763836293269,-1036.81354506,6.253e-05,2]
[394662249,1763836293327,-10000.01,6.253e-05,2]
[394662250,1763836293341,-10000.01,6.253e-05,2]
[394662251,1763836293356,-10000.01,6.253e-05,2]
[394662252,1763836293415,-10000.01,6.253e-05,2]
[394662253,1763836293552,-10000.01,6.253e-05,2]
[394662254,1763836293713,-10000.01,6.253e-05,2]
[394662256,1763836294999,-10000.01,6.253e-05,2]
[394662257,1763836295108,-10000.01,6.253e-05,2]
[394662258,1763836295238,-10000.01,6.253e-05,2]
[394662259,1763836295371,-10000.01,6.253e-05,2]
[394662260,1763836301063,-10000.01,6.253e-05,2]
[394662261,1763836301229,-10000.01,6.253e-05,2]
[394662262,1763836301362,-10000.01,6.253e-05,2]
[394662263,1763836301596,-10000.01,6.253e-05,2]
[394662264,1763836301611,-10000.01,6.253e-05,2]
[394662265,1763836301672,-10000.01,6.253e-05,2]
[394662266,1763836301827,-10000.01,6.253e-05,2]
[394662267,1763836429131,-283.87986581,5.967e-05,2]
[394662269,1763836469865,7000.2016633,5.19e-05,2]
[394662270,1763836504131,-423.3186485,5.907e-05,2]
[394662271,1763836504154,-297.20513874,5.967e-05,2]
[394662283,1763836935943,-126.11350976,5.967e-05,2]
[394662284,1763836935970,-150.0,6.032e-05,2]
[394662285,1763836935993,-500.0,6.233e-05,2]
[394662286,1763836936017,-466.7314431,6.233e-05,2]
[394662287,1763836936041,-1200.0,6.25e-05,2]
[394662288,1763836936065,-300.0,6.25e-05,2]
[394662289,1763836936088,-300.0,6.251e-05,2]
[394662290,1763836936110,-300.0,6.251e-05,2]
[394662291,1763836936133,-1200.0,6.251e-05,2]
[394662292,1763836936156,-300.0,6.251e-05,2]
[394662293,1763836936178,-500.0,6.252e-05,2]
[394662294,1763836936209,-500.0,6.252e-05,2]
[394662295,1763836936239,-500.0,6.252e-05,2]
[394662296,1763836936268,-500.0,6.252e-05,2]
[394662297,1763836936297,-500.0,6.252e-05,2]
[394662298,1763836936325,-500.0,6.252e-05,2]
[394662299,1763836936354,-500.0,6.252e-05,2]
[394662300,1763836936383,-500.0,6.252e-05,2]
[394662301,1763836936413,-500.0,6.252e-05,2]
[394662302,1763836936444,-500.0,6.252e-05,2]
[394662303,1763836936472,-500.018,6.252e-05,2]
[394662304,1763836936501,-500.0,6.252e-05,2]
[394662305,1763836936531,-500.0,6.252e-05,2]
[394662306,1763836936560,-500.0,6.252e-05,2]
[394662307,1763836936589,-500.0,6.252e-05,2]
[394662308,1763836936618,-500.0,6.252e-05,2]
[394662309,1763836936648,-500.0,6.252e-05,2]
[394662310,1763836936682,-500.0,6.252e-05,2]
[394662311,1763836936892,-500.0,6.252e-05,2]
[394662312,1763836936925,-500.0,6.252e-05,2]
[394662313,1763836936956,-500.0,6.252e-05,2]
[394662314,1763836936986,-500.0,6.252e-05,2]
[394662315,1763836937015,-500.0,6.252e-05,2]
[394662316,1763836937045,-500.0,6.252e-05,2]
[394662317,1763836937075,-500.0,6.252e-05,2]
[394662318,1763836937104,-500.0,6.252e-05,2]
[394662319,1763836937134,-500.0,6.252e-05,2]
[394662320,1763836937170,-500.0,6.252e-05,2]
[394662321,1763836937200,-500.0,6.252e-05,2]
[394662322,1763836937230,-500.0,6.252e-05,2]
[394662323,1763836937260,-500.0,6.252e-05,2]
[394662324,1763836937289,-500.0,6.252e-05,2]
[394662325,1763836937319,-500.0,6.252e-05,2]
[394662326,1763836937348,-500.0,6.252e-05,2]
[394662327,1763836937383,-500.0,6.252e-05,2]
[394662328,1763836937419,-500.0,6.252e-05,2]
[394662329,1763836937453,-200.0,6.252e-05,2]
[394662330,1763836937479,-500.0,6.252e-05,2]
[394662331,1763836937505,-500.0,6.252e-05,2]
[394662332,1763836937534,-500.0,6.252e-05,2]
[394662333,1763836937562,-457.13704714,6.252e-05,2]
[394662334,1763836937693,-42.86295286,6.252e-05,2]
[394662335,1763836937719,-500.0,6.252e-05,2]
[394662336,1763836937744,-500.0,6.252e-05,2]
[394662337,1763836937770,-500.0,6.252e-05,2]
[394662338,1763836937801,-500.0,6.252e-05,2]
[394662339,1763836937830,-500.0,6.252e-05,2]
[394662340,1763836937856,-500.0,6.252e-05,2]
[394662341,1763836937881,-500.0,6.252e-05,2]
[394662342,1763836937906,-166.856026,6.252e-05,2]
[394662343,1763836937930,-500.0,6.252e-05,2]
[394662344,1763836937954,-500.0,6.252e-05,2]
[394662345,1763836937981,-500.0,6.252e-05,2]
[394662346,1763836938006,-500.0,6.252e-05,2]
[394662347,1763836938031,-500.0,6.252e-05,2]
[394662348,1763836938056,-500.0,6.252e-05,2]
[394662349,1763836938079,-368.35319954,6.252e-05,2]
[394662350,1763836938106,-17921.9278216,6.253e-05,2]
[394662351,1763836938341,-25000.0,6.253e-05,2]
[394662352,1763836938961,-25000.0,6.253e-05,2]
[394662353,1763836939573,-25000.0,6.253e-05,2]
[394662354,1763836940380,-25000.0,6.253e-05,2]
[394662355,1763836941149,-25000.0,6.253e-05,2]
[394662356,1763836941810,-25000.0,6.253e-05,2]
[394662357,1763836942583,-25000.0,6.253e-05,2]
[394662358,1763836943421,-25000.0,6.253e-05,2]
[394662359,1763836944449,-25000.0,6.253e-05,2]
[394662360,1763836945158,-13694.22763117,6.19e-05,2]
[394662361,1763836945186,-11305.77236883,6.253e-05,2]
[394662362,1763836946031,-25000.0,6.253e-05,2]
[394662363,1763836946938,-25000.0,6.253e-05,2]
[394662364,1763836947684,-25000.0,6.253e-05,2]
[394662365,1763836948466,-25000.0,6.253e-05,2]
[394662366,1763836949517,-25000.0,6.253e-05,2]
[394662367,1763836950300,-25000.0,6.253e-05,2]
[394662368,1763836951138,-25000.0,6.253e-05,2]
[394662369,1763836952018,-25000.0,6.253e-05,2]
[394662370,1763836952799,-18778.39321002,6.19e-05,2]
[394662371,1763836952827,-6221.60678998,6.253e-05,2]
[394662372,1763836953772,-25000.0,6.253e-05,2]
[394662373,1763836954752,-20490.74451971,6.253e-05,2]
[394662374,1763836954776,-1000.0,6.253e-05,2]
[394662375,1763836954803,-1000.0,6.253e-05,2]
[394662376,1763836954826,-1000.0,6.253e-05,2]
[394662377,1763836954848,-152.0550624,6.253e-05,2]
[394662378,1763836959710,1357.20041789,6.152e-05,2]
[394662379,1763836959736,25000.0,6.152e-05,2]
[394662380,1763836965881,-25000.0,6.152e-05,2]
[394662381,1763836967448,-25000.0,6.152e-05,2]
[394662382,1763836977732,-2900.0,6.152e-05,2]
[394662383,1763837121872,-300.00135814,6.028e-05,2]
[394662384,1763837126799,-292.64124251,6.028e-05,2]
[394662385,1763837130236,-195.61550192,6.028e-05,2]
[394662386,1763837131807,-300.0,6.028e-05,2]
[394662387,1763837135948,-111.74189743,6.028e-05,2]
[394662388,1763837135970,-87.538921,6.029e-05,2]
[394662389,1763837136416,-1644.42471279,6.029e-05,2]
[394662390,1763837136439,-6711.16057442,6.029e-05,2]
[394662391,1763837136821,-1556.88579179,6.09e-05,2]
[394662392,1763837136849,-6886.23841642,6.09e-05,2]
[394662394,1763837138346,-182.82746958,6.151e-05,2]
[394662395,1763837138368,-99.75235784,6.151e-05,2]
[394662396,1763837142662,-308.09488184,6.151e-05,2]
[394662397,1763837142692,-500.0,6.151e-05,2]
[394662398,1763837142726,-500.0,6.151e-05,2]
[394662399,1763837142760,-500.0,6.151e-05,2]
[394662400,1763837142793,-500.0,6.151e-05,2]
[394662401,1763837142828,-500.0,6.151e-05,2]
[394662402,1763837142862,-500.0,6.151e-05,2]
[394662403,1763837142898,-500.0,6.151e-05,2]
[394662404,1763837142929,-462.98400289,6.151e-05,2]
[394662405,1763837142962,-500.0,6.151e-05,2]
[394662406,1763837143060,-500.0,6.151e-05,2]
[394662407,1763837143094,-500.0,6.151e-05,2]
[394662408,1763837143126,-500.0,6.151e-05,2]
[394662409,1763837143160,-500.0,6.151e-05,2]
[394662410,1763837143193,-500.0,6.151e-05,2]
[394662411,1763837143228,-500.0,6.151e-05,2]
[394662412,1763837143261,-500.0,6.151e-05,2]
[394662413,1763837143294,-500.0,6.151e-05,2]
[394662414,1763837143326,-500.0,6.151e-05,2]
[394662415,1763837143358,-500.0,6.151e-05,2]
[394662416,1763837143629,-500.0,6.151e-05,2]
[394662417,1763837143649,-0.01,6.151e-05,2]
[394662422,1763837344175,-167.00221049,5.907e-05,2]
[394662423,1763837346281,-132.99778951,5.907e-05,2]
[394662424,1763837346307,-201.31988403,5.967e-05,2]
[394662465,1763837431953,-98.68011597,5.967e-05,2]
[394662467,1763837431963,-150.0,6.028e-05,2]
[394662469,1763837431973,-300.0,6.086e-05,2]
[394662471,1763837431983,-1200.0,6.086e-05,2]
[394662473,1763837431992,-500.0,6.087e-05,2]
[394662475,1763837432003,-154.83203798,6.087e-05,2]
[394662478,1763837432012,-500.0,6.087e-05,2]
[394662481,1763837432021,-500.0,6.087e-05,2]
[394662484,1763837432030,-500.0,6.087e-05,2]
[394662486,1763837432039,-500.0,6.087e-05,2]
[394662488,1763837432048,-500.0,6.087e-05,2]
[394662490,1763837432057,-500.0,6.087e-05,2]
[394662492,1763837432066,-500.0,6.087e-05,2]
[394662494,1763837432075,-500.0,6.087e-05,2]
[394662496,1763837432083,-500.0,6.087e-05,2]
[394662498,1763837432092,-500.0,6.087e-05,2]
[394662500,1763837432101,-500.0,6.087e-05,2]
[394662502,1763837432110,-500.0,6.087e-05,2]
[394662504,1763837432119,-500.0,6.087e-05,2]
[394662506,1763837432128,-450.0,6.087e-05,2]
[394662508,1763837432137,-500.0,6.087e-05,2]
[394662510,1763837432147,-500.0,6.087e-05,2]
[394662512,1763837432155,-500.0,6.087e-05,2]
[394662514,1763837432164,-500.0,6.087e-05,2]
[394662516,1763837432174,-500.0,6.087e-05,2]
[394662518,1763837432183,-500.0,6.087e-05,2]
[394662520,1763837432192,-500.0,6.087e-05,2]
[394662522,1763837432202,-500.0,6.087e-05,2]
[394662524,1763837432212,-500.0,6.087e-05,2]
[394662526,1763837432223,-500.0,6.087e-05,2]
[394662528,1763837432232,-500.0,6.087e-05,2]
[394662530,1763837432241,-500.0,6.087e-05,2]
[394662532,1763837432251,-304.90802843,6.087e-05,2]
[394662534,1763837432263,-195.09197157,6.087e-05,2]
[394662536,1763837432273,-268.50986372,6.087e-05,2]
[394662538,1763837432285,-231.49013628,6.087e-05,2]
[394662540,1763837432296,-500.0,6.087e-05,2]
[394662542,1763837432306,-500.0,6.087e-05,2]
[394662544,1763837432316,-84.68486372,6.087e-05,2]
[394662546,1763837432329,-415.31513628,6.087e-05,2]
[394662548,1763837432339,-155.24486372,6.087e-05,2]
[394662615,1763837440167,-344.75513628,6.087e-05,2]
[394662616,1763837440177,-500.0,6.087e-05,2]
[394662617,1763837440187,-500.0,6.087e-05,2]
[394662618,1763837440196,-410.20486372,6.087e-05,2]
[394662619,1763837440582,-2e-08,6.087e-05,2]
[394662628,1763837445163,-13.956183,6.087e-05,2]
[394662633,1763837446075,-39.2027485,6.087e-05,2]
[394662634,1763837446150,-36.63620476,6.087e-05,2]
[394662635,1763837446159,-500.0,6.087e-05,2]
[394662636,1763837446168,-500.0,6.087e-05,2]
[394662637,1763837446177,-1019.03894876,6.087e-05,2]
[394662638,1763837446186,-1019.03894876,6.087e-05,2]
[394662639,1763837446195,-1019.03894876,6.087e-05,2]
[394662640,1763837446204,-1019.03894876,6.087e-05,2]
[394662641,1763837446214,-707.2080002,6.087e-05,2]
[394662642,1763837446225,-311.83094856,6.087e-05,2]
[394662643,1763837446236,-1019.03894876,6.087e-05,2]
[394662644,1763837446246,-500.0,6.087e-05,2]
[394662645,1763837446256,-1019.03894876,6.087e-05,2]
[394662646,1763837446266,-1019.03894876,6.087e-05,2]
[394662647,1763837446277,-471.19813208,6.087e-05,2]
[394662649,1763837446287,-1019.03894876,6.087e-05,2]
[394662650,1763837446297,-1019.03894876,6.087e-05,2]
[394662651,1763837446311,-1019.03894876,6.087e-05,2]
[394662652,1763837446320,-1019.03894876,6.087e-05,2]
[394662653,1763837446329,-290.19827804,6.087e-05,2]
[394662657,1763837464180,-498.68011597,5.966e-05,2]
[394662662,1763837554138,-274.14153861,5.966e-05,2]
[394662663,1763837556552,-732.84277285,5.966e-05,2]
[394662664,1763837558584,-160.09142126,5.966e-05,2]
[394662665,1763837560682,-179.38086943,5.966e-05,2]
[394662666,1763837563317,-218.99074846,5.966e-05,2]
[394662669,1763837567128,-217.17269628,5.966e-05,2]
[394662670,1763837571333,-183.99863887,5.966e-05,2]
[394662671,1763837573454,-169.3753134,5.966e-05,2]
[394662672,1763837577742,-329.85695134,5.966e-05,2]
[394662673,1763837579861,-170.14304866,5.966e-05,2]
[394662674,1763837581950,-185.81014255,5.966e-05,2]
[394662675,1763837583436,-158.62007119,5.966e-05,2]
[394662676,1763837587019,-159.89806499,5.966e-05,2]
[394662677,1763837589911,-315.24372136,5.966e-05,2]
[394662678,1763837591485,-293.87999023,5.966e-05,2]
[394662679,1763837595195,-179.3270554,5.966e-05,2]
[394662680,1763837597269,-194.23588192,5.966e-05,2]
[394662681,1763837599292,-156.33699387,5.966e-05,2]
[394662682,1763837600897,-158.90364742,5.966e-05,2]
[394662683,1763837605821,-272.55975143,5.966e-05,2]
[394662684,1763837607325,-152.46570568,5.966e-05,2]
[394662685,1763837609914,-154.27065115,5.966e-05,2]
[394662686,1763837611316,-296.46858268,5.966e-05,2]
[394662687,1763837613918,-305.7781424,5.966e-05,2]
[394662688,1763837616536,-334.35619993,5.966e-05,2]
[394662689,1763837618034,-259.37842308,5.966e-05,2]
[394662690,1763837620610,-261.29452152,5.966e-05,2]
[394662691,1763837623814,-171.28612386,5.966e-05,2]
[394662692,1763837625893,-196.70408005,5.966e-05,2]
[394662693,1763837628353,-179.65731897,5.966e-05,2]
[394662694,1763837631381,-170.31620248,5.966e-05,2]
[394662695,1763837632932,-282.03627464,5.966e-05,2]
[394662696,1763837637097,-157.74738027,5.966e-05,2]
[394662697,1763837640191,10000.01,5.906e-05,2]
[394662698,1763837640213,10000.01,5.906e-05,2]
[394662699,1763837640337,-1192.00111112,5.906e-05,2]
[394662702,1763837650615,-10000.01,5.847e-05,2]
[394662703,1763837650726,-873.7467561,5.847e-05,2]
[394662704,1763837650768,-8252.5164878,5.906e-05,2]
[394662705,1763837734185,-239.47360781,5.847e-05,2]
[394662706,1763837779774,-345.76266063,5.847e-05,2]
[394662707,1763837784567,-349.66018652,5.847e-05,2]
[394662708,1763837788382,-227.89014066,5.847e-05,2]
[394662709,1763837792110,-433.65191008,5.847e-05,2]
[394662710,1763837793242,-346.43679935,5.847e-05,2]
[394662711,1763837795780,-232.28023772,5.847e-05,2]
[394662712,1763837797913,-243.95404437,5.847e-05,2]
[394662714,1763837870217,-167.383944,5.731e-05,2]
[394662716,1763837959205,-34.74673716,5.731e-05,2]
[394662717,1763837959227,-150.0,5.76e-05,2]
[394662718,1763837959249,-198.83229627,5.789e-05,2]
[394662719,1763837989711,-3.29838489,5.789e-05,2]
[394662720,1763837989736,-277.63726745,6.032e-05,2]
[394662733,1763838064939,-162.2891979,5.911e-05,2]
[394662734,1763838066533,-174.35170601,5.911e-05,2]
[394662735,1763838069241,-282.74434737,5.911e-05,2]
[394662736,1763838073585,-280.98071383,5.911e-05,2]
[394662737,1763838076303,-242.36129342,5.911e-05,2]
[394662738,1763838078413,-200.95741177,5.911e-05,2]
[394662739,1763838081912,-300.0,5.911e-05,2]
[394662740,1763838083375,-271.69504133,5.911e-05,2]
[394662741,1763838085127,-194.0,5.911e-05,2]
[394662742,1763838086667,-265.37778853,5.911e-05,2]
[394662743,1763838088395,-219.99452418,5.911e-05,2]
[394662744,1763838090482,-192.00843584,5.911e-05,2]
[394662745,1763838092583,-234.46429188,5.911e-05,2]
[394662750,1763838109207,-151.8744075,5.911e-05,2]
[394662751,1763838111187,-169.69070441,5.911e-05,2]
[394662752,1763838113799,-296.42325654,5.911e-05,2]
[394662753,1763838116840,-214.45717503,5.911e-05,2]
[394662754,1763838123768,-209.35266033,5.911e-05,2]
[394662755,1763838126316,-179.28524712,5.91e-05,2]
[394662756,1763838128368,-120.71475288,5.91e-05,2]
[394662757,1763838128391,-413.51115704,5.911e-05,2]
[394662758,1763838130522,-186.24481626,5.911e-05,2]
[394662759,1763838133036,-340.23392781,5.911e-05,2]
[394662760,1763838134444,-334.92242884,5.911e-05,2]
[394662761,1763838137057,-153.64209412,5.911e-05,2]
[394662762,1763838140233,-153.95640602,5.911e-05,2]
[394662763,1763838142830,-235.35880061,5.911e-05,2]
[394662766,1763838145443,-343.25111191,5.911e-05,2]
[394662767,1763838147526,-315.92990254,5.911e-05,2]
[394662769,1763838149659,-360.5417134,5.911e-05,2]
[394662770,1763838151836,-377.7558876,5.911e-05,2]
[394662771,1763838169209,-322.65642413,5.911e-05,2]
[394662772,1763838172596,-446.215756,5.91e-05,2]
[394662773,1763838174336,-384.21283943,5.91e-05,2]
[394662774,1763838175524,-323.1023012,5.91e-05,2]
[394662775,1763838177017,-46.46910337,5.91e-05,2]
[394662776,1763838177040,-154.2985554,5.911e-05,2]
[394662777,1763838181244,218.5676703,5.052e-05,2]
[394662779,1763838182123,-469.53624918,5.911e-05,2]
[394662780,1763838185366,-351.03692855,5.911e-05,2]
[394662781,1763838188687,-226.87864518,5.911e-05,2]
[394662782,1763838190853,-236.26636366,5.911e-05,2]
[394662783,1763838193062,-200.76765877,5.911e-05,2]
[394662784,1763838194583,-300.0,5.911e-05,2]
[394662785,1763838198953,-217.36372703,5.852e-05,2]
[394662786,1763838201238,-300.0,5.852e-05,2]
[394662787,1763838205367,-211.43809544,5.793e-05,2]
[394662788,1763838207117,-229.2473945,5.793e-05,2]
[394662789,1763838209740,-175.94239484,5.793e-05,2]
[394662790,1763838211902,-210.33789322,5.793e-05,2]
[394662791,1763838213928,-229.29521031,5.793e-05,2]
[394662792,1763838216034,-400.60533716,5.793e-05,2]
[394662793,1763838218160,-336.62280309,5.793e-05,2]
[394662794,1763838220711,-230.89251116,5.793e-05,2]
[394662795,1763838223348,-165.20419547,5.793e-05,2]
[394662796,1763838227970,-158.70942443,5.793e-05,2]
[394662797,1763838232253,-235.92759792,5.793e-05,2]
[394662798,1763838234341,-285.58313935,5.793e-05,2]